fUST/lending_fUST_20240705
["ID","MTS","AMOUNT","RATE_DAILY","PERIOD"]
[331195652,1720129849879,-500.0,0.0001452,2]
[331195653,1720129849890,-547.48,0.0001452,2]
[331195654,1720129849900,-524.67,0.0001452,2]
[331195655,1720129849910,-500.0,0.0001452,2]
[331195656,1720129849920,-661.15,0.0001452,2]
[331195657,1720129849931,-500.0,0.0001452,2]
[331195658,1720129849940,-500.0,0.0001452,2]
[331195659,1720129849949,-500.0,0.0001452,2]
[331195660,1720129849958,-500.0,0.0001452,2]
[331195661,1720129849968,-500.0,0.0001452,2]
[331195662,1720129849978,-500.0,0.0001452,2]
[331195663,1720129849987,-500.0,0.0001452,2]
[331195664,1720129849995,-971.7,0.0001452,2]
[331195665,1720129850006,-500.0,0.0001452,2]
[331195666,1720129850015,-553.73501593,0.0001452,2]
[331195667,1720129850024,-500.0,0.0001452,2]
[331195668,1720129850033,-500.0,0.0001452,2]
[331195669,1720129850042,-500.0,0.0001452,2]
[331195670,1720129850051,-500.0,0.0001452,2]
[331195671,1720129850060,-6573.63,0.0001452,2]
[331195672,1720129850069,-500.0,0.0001452,2]
[331195673,1720129850078,-500.0,0.0001452,2]
[331195674,1720129850087,-500.0,0.0001452,2]
[331195675,1720129850096,-500.0,0.0001452,2]
[331195676,1720129850106,-500.0,0.0001452,2]
[331195677,1720129850115,-500.0,0.0001452,2]
[331195678,1720129850124,-500.0,0.0001452,2]
[331195679,1720129850133,-770.32,0.0001452,2]
[331195680,1720129850142,-3056.78,0.0001452,2]
[331195681,1720129850151,-596.61,0.0001452,2]
[331195682,1720129850161,-961.09,0.0001452,2]
[331195683,1720129850170,-500.0,0.0001452,2]
[331195684,1720129850180,-500.0,0.0001452,2]
[331195685,1720129850189,-500.0,0.0001452,2]
[331195686,1720129850203,-555.25,0.0001452,2]
[331195687,1720129850212,-500.0,0.0001452,2]
[331195688,1720129850221,-500.0,0.0001452,2]
[331195689,1720129850230,-500.0,0.0001452,2]
[331195690,1720129850239,-500.0,0.0001452,2]
[331195691,1720129850250,-500.0,0.0001452,2]
[331195692,1720129850259,-500.0,0.0001452,2]
[331195693,1720129850269,-501.06,0.0001452,2]
[331195694,1720129850278,-500.0,0.0001452,2]
[331195695,1720129850368,-500.0,0.0001452,2]
[331195696,1720129850377,-504.17721381,0.0001452,2]
[331195697,1720129850387,-500.0,0.0001452,2]
[331195698,1720129850396,-500.0,0.0001452,2]
[331195699,1720129850406,-500.0,0.0001452,2]
[331195700,1720129850416,-500.0,0.0001452,2]
[331195701,1720129850425,-500.0,0.0001452,2]
[331195702,1720129850434,-500.0,0.0001452,2]
[331195703,1720129850443,-500.0,0.0001452,2]
[331195704,1720129850453,-2088.51,0.0001452,2]
[331195705,1720129850462,-500.0,0.0001452,2]
[331195706,1720129850471,-596.6,0.0001452,2]
[331195707,1720129850481,-500.0,0.0001452,2]
[331195708,1720129850490,-500.0,0.0001452,2]
[331195709,1720129850499,-506.15742371,0.0001452,2]
[331195710,1720129850508,-500.0,0.0001452,2]
[331195711,1720129850517,-500.0,0.0001452,2]
[331195712,1720129850527,-631.52471171,0.0001452,2]
[331195713,1720129850536,-500.0,0.0001452,2]
[331195714,1720129850545,-500.0,0.0001452,2]
[331195715,1720129850554,-500.0,0.0001452,2]
[331195716,1720129850563,-500.0,0.0001452,2]
[331195717,1720129850573,-501.09,0.0001452,2]
[331195718,1720129850582,-500.0,0.0001452,2]
[331195719,1720129850591,-500.0,0.0001452,2]
[331195720,1720129850600,-500.0,0.0001452,2]
[331195721,1720129850609,-500.0,0.0001452,2]
[331195722,1720129850619,-500.0,0.0001452,2]
[331195723,1720129850628,-500.0,0.0001452,2]
[331195724,1720129850637,-679.7,0.0001452,2]
[331195725,1720129850646,-500.0,0.0001452,2]
[331195726,1720129850655,-371.54666403,0.0001452,2]
[331195727,1720129850664,-500.0,0.0001452,2]
[331195728,1720129850673,-600.23,0.0001452,2]
[331195729,1720129850683,-500.0,0.0001452,2]
[331195730,1720129850691,-500.0,0.0001452,2]
[331195731,1720129850700,-500.0,0.0001452,2]
[331195732,1720129850709,-6708.03,0.0001452,2]
[331195733,1720129850718,-626.59,0.0001452,2]
[331195734,1720129850727,-500.0,0.0001452,2]
[331195735,1720129850737,-500.0,0.0001452,2]
[331195736,1720129850747,-500.0,0.0001452,2]
[331195737,1720129850756,-500.0,0.0001452,2]
[331195738,1720129850765,-500.0,0.0001452,2]
[331195739,1720129850775,-500.0,0.0001452,2]
[331195740,1720129850784,-500.0,0.0001452,2]
[331195741,1720129850793,-500.0,0.0001452,2]
[331195742,1720129850802,-924.87,0.0001452,2]
[331195743,1720129850811,-500.0,0.0001452,2]
[331195744,1720129850821,-505.97644375,0.0001452,2]
[331195745,1720129850832,-500.0,0.0001452,2]
[331195746,1720129850842,-500.0,0.0001452,2]
[331195747,1720129850851,-517.8,0.0001452,2]
[331195748,1720129850860,-500.0,0.0001452,2]
[331195749,1720129850869,-942.75,0.0001452,2]
[331195750,1720129850878,-500.0,0.0001452,2]
[331195751,1720129850887,-500.0,0.0001452,2]
[331195752,1720129850896,-610.77,0.0001452,2]
[331195753,1720129850904,-500.0,0.0001452,2]
[331195754,1720129850913,-4498.88,0.0001452,2]
[331195755,1720129850923,-500.0,0.0001452,2]
[331195756,1720129850935,-500.0,0.0001452,2]
[331195757,1720129850946,-500.0,0.0001452,2]
[331195758,1720129850956,-1213.98,0.0001452,2]
[331195759,1720129850968,-500.0,0.0001452,2]
[331195760,1720129850978,-500.0,0.0001452,2]
[331195761,1720129850988,-500.0,0.0001452,2]
[331195762,1720129851000,-500.0,0.0001452,2]
[331195763,1720129851009,-500.0,0.0001452,2]
[331195764,1720129851019,-500.0,0.0001452,2]
[331195765,1720129851028,-500.0,0.0001452,2]
[331195766,1720129851037,-500.0,0.0001452,2]
[331195767,1720129851047,-500.0,0.0001452,2]
[331195768,1720129851057,-500.0,0.0001452,2]
[331195769,1720129851066,-500.0,0.0001452,2]
[331195770,1720129851075,-708.34,0.0001452,2]
[331195771,1720129851086,-1707.69,0.0001452,2]
[331195772,1720129851095,-500.0,0.0001452,2]
[331195773,1720129851105,-500.0,0.0001452,2]
[331195774,1720129851115,-500.0,0.0001452,2]
[331195775,1720129851125,-500.0,0.0001452,2]
[331195776,1720129851136,-684.74,0.0001452,2]
[331195777,1720129851145,-2120.1,0.0001452,2]
[331195778,1720129851155,-500.0,0.0001452,2]
[331195779,1720129851164,-500.0,0.0001452,2]
[331195780,1720129851173,-500.0,0.0001452,2]
[331195781,1720129851182,-500.0,0.0001452,2]
[331195782,1720129851192,-1142.91,0.0001452,2]
[331195783,1720129851204,-500.0,0.0001452,2]
[331195784,1720129851213,-500.0,0.0001452,2]
[331195785,1720129851222,-637.35,0.0001452,2]
[331195786,1720129851231,-500.0,0.0001452,2]
[331195787,1720129851241,-500.0,0.0001452,2]
[331195788,1720129851250,-500.0,0.0001452,2]
[331195789,1720129851259,-500.0,0.0001452,2]
[331195790,1720129851268,-500.0,0.0001452,2]
[331195791,1720129851278,-1014.8,0.0001452,2]
[331195792,1720129851288,-2031.52,0.0001452,2]
[331195793,1720129851297,-500.0,0.0001452,2]
[331195794,1720129851307,-500.0,0.0001452,2]
[331195795,1720129851316,-500.0,0.0001452,2]
[331195796,1720129851325,-500.0,0.0001452,2]
[331195797,1720129851334,-500.0,0.0001452,2]
[331195798,1720129851345,-500.0,0.0001452,2]
[331195799,1720129851355,-500.0,0.0001452,2]
[331195800,1720129851364,-500.0,0.0001452,2]
[331195801,1720129851373,-553.93109122,0.0001452,2]
[331195802,1720129851382,-500.0,0.0001452,2]
[331195803,1720129851391,-3475.38,0.0001452,2]
[331195804,1720129851400,-500.0,0.0001452,2]
[331195805,1720129851409,-500.0,0.0001452,2]
[331195806,1720129851418,-500.0,0.0001452,2]
[331195807,1720129851427,-500.0,0.0001452,2]
[331195808,1720129851436,-500.0,0.0001452,2]
[331195809,1720129851445,-500.0,0.0001452,2]
[331195810,1720129851454,-500.0,0.0001452,2]
[331195811,1720129851463,-5832.81,0.0001452,2]
[331195812,1720129851473,-500.0,0.0001452,2]
[331195813,1720129851482,-500.0,0.0001452,2]
[331195814,1720129851491,-500.0,0.0001452,2]
[331195815,1720129851500,-500.0,0.0001452,2]
[331195816,1720129851509,-500.0,0.0001452,2]
[331195817,1720129851518,-12459.4,0.0001452,2]
[331195818,1720129851527,-500.0,0.0001452,2]
[331195819,1720129851535,-500.0,0.0001452,2]
[331195820,1720129851544,-500.0,0.0001452,2]
[331195821,1720129851553,-500.0,0.0001452,2]
[331195822,1720129851562,-500.0,0.0001452,2]
[331195823,1720129851571,-500.0,0.0001452,2]
[331195824,1720129851580,-515.19749725,0.0001452,2]
[331195825,1720129851589,-1789.57,0.0001452,2]
[331195826,1720129851598,-500.0,0.0001452,2]
[331195827,1720129851608,-500.0,0.0001452,2]
[331195828,1720129851617,-500.0,0.0001452,2]
[331195829,1720129851626,-500.0,0.0001452,2]
[331195830,1720129851634,-500.0,0.0001452,2]
[331195831,1720129851643,-500.0,0.0001452,2]
[331195832,1720129851653,-2939.9,0.0001452,2]
[331195833,1720129851662,-500.0,0.0001452,2]
[331195834,1720129851671,-500.0,0.0001452,2]
[331195835,1720129851680,-199.1710651,0.00014685,2]
[331195836,1720129851689,-943.60299027,0.00014783,2]
[331195837,1720129851698,-1887.20598054,0.00014784,2]
[331195838,1720129851707,-2669.32,0.00014793,2]
[331195839,1720129851716,-11029.28750384,0.00014794,2]
[331195840,1720129851725,-500.0,0.00014794,2]
[331195841,1720129851735,-500.0,0.00014794,2]
[331195842,1720129851744,-500.0,0.00014794,2]
[331195843,1720129851753,-500.0,0.00014794,2]
[331195844,1720129851763,-500.0,0.00014794,2]
[331195845,1720129851771,-500.0,0.00014794,2]
[331195846,1720129851781,-500.0,0.00014794,2]
[331195847,1720129851790,-504.30890535,0.00014794,2]
[331195848,1720129851799,-500.0,0.00014794,2]
[331195849,1720129851808,-320.25,0.00014794,2]
[331195850,1720129851817,-500.0,0.00014794,2]
[331195851,1720129851827,-500.0,0.00014794,2]
[331195852,1720129851838,-705.27,0.00014794,2]
[331195853,1720129851847,-500.0,0.00014794,2]
[331195854,1720129851856,-500.0,0.00014794,2]
[331195855,1720129851866,-500.0,0.00014794,2]
[331195856,1720129851875,-500.0,0.00014794,2]
[331195857,1720129851884,-500.0,0.00014794,2]
[331195858,1720129851894,-500.0,0.00014794,2]
[331195859,1720129851904,-620.006378,0.00014794,2]
[331195860,1720129851913,-500.0,0.00014794,2]
[331195861,1720129851923,-178.61289237,0.00014794,2]
[331195862,1720129852009,-500.0,0.00014794,2]
[331195863,1720129852019,-500.0,0.00014794,2]
[331195864,1720129852028,-547.48,0.00014794,2]
[331195865,1720129852037,-524.67,0.00014794,2]
[331195866,1720129852046,-500.0,0.00014794,2]
[331195867,1720129852055,-661.15,0.00014794,2]
[331195868,1720129852064,-500.0,0.00014794,2]
[331195869,1720129852073,-500.0,0.00014794,2]
[331195870,1720129852082,-500.0,0.00014794,2]
[331195871,1720129852091,-500.0,0.00014794,2]
[331195872,1720129852099,-500.0,0.00014794,2]
[331195873,1720129852108,-500.0,0.00014794,2]
[331195874,1720129852117,-971.7,0.00014794,2]
[331195875,1720129852127,-500.0,0.00014794,2]
[331195876,1720129852137,-500.0,0.00014794,2]
[331195877,1720129852147,-500.0,0.00014794,2]
[331195878,1720129852156,-500.0,0.00014794,2]
[331195879,1720129852166,-500.0,0.00014794,2]
[331195880,1720129852176,-6573.63,0.00014794,2]
[331195881,1720129852187,-500.0,0.00014794,2]
[331195882,1720129852197,-610.69,0.00014794,2]
[331195883,1720129852210,-500.0,0.00014794,2]
[331195884,1720129852219,-153.16,0.00014794,2]
[331195885,1720129852228,-500.0,0.00014794,2]
[331195886,1720129852239,-770.32,0.00014794,2]
[331195887,1720129852250,-3056.78,0.00014794,2]
[331195888,1720129852259,-596.61,0.00014794,2]
[331195889,1720129852270,-961.09,0.00014794,2]
[331195890,1720129852282,-500.0,0.00014794,2]
[331195891,1720129852293,-500.0,0.00014794,2]
[331195892,1720129852303,-555.25,0.00014794,2]
[331195893,1720129852312,-500.0,0.00014794,2]
[331195894,1720129852322,-500.0,0.00014794,2]
[331195895,1720129852331,-500.0,0.00014794,2]
[331195896,1720129852341,-500.0,0.00014794,2]
[331195897,1720129852350,-500.0,0.00014794,2]
[331195898,1720129852359,-501.06,0.00014794,2]
[331195899,1720129852368,-500.0,0.00014794,2]
[331195900,1720129852378,-500.0,0.00014794,2]
[331195901,1720129852387,-500.0,0.00014794,2]
[331195902,1720129852397,-500.0,0.00014794,2]
[331195903,1720129852407,-305.81008106,0.00014794,2]
[331195904,1720129852416,-500.0,0.00014794,2]
[331195905,1720129852425,-500.0,0.00014794,2]
[331195906,1720129852435,-500.0,0.00014794,2]
[331195907,1720129852444,-2088.51,0.00014794,2]
[331195908,1720129852453,-500.0,0.00014794,2]
[331195909,1720129852462,-596.6,0.00014794,2]
[331195910,1720129852472,-500.0,0.00014794,2]
[331195911,1720129852481,-522.59023114,0.00014794,2]
[331195912,1720129852490,-500.0,0.00014794,2]
[331195913,1720129852500,-500.0,0.00014794,2]
[331195914,1720129852509,-500.0,0.00014794,2]
[331195915,1720129852518,-618.59507928,0.00014794,2]
[331195916,1720129852529,-500.0,0.00014794,2]
[331195917,1720129852539,-500.0,0.00014794,2]
[331195918,1720129852548,-501.09,0.00014794,2]
[331195919,1720129852558,-543.1,0.00014794,2]
[331195920,1720129852568,-500.0,0.00014794,2]
[331195921,1720129852580,-500.0,0.00014794,2]
[331195922,1720129852590,-500.0,0.00014794,2]
[331195923,1720129852600,-679.7,0.00014794,2]
[331195924,1720129852609,-500.0,0.00014794,2]
[331195925,1720129852618,-516.24,0.00014794,2]
[331195926,1720129852628,-500.0,0.00014794,2]
[331195927,1720129852638,-600.23,0.00014794,2]
[331195928,1720129852648,-500.0,0.00014794,2]
[331195929,1720129852658,-500.0,0.00014794,2]
[331195930,1720129852669,-6708.03,0.00014794,2]
[331195931,1720129852678,-626.59,0.00014794,2]
[331195932,1720129852688,-500.0,0.00014794,2]
[331195933,1720129852698,-500.0,0.00014794,2]
[331195934,1720129852708,-500.0,0.00014794,2]
[331195935,1720129852717,-500.0,0.00014794,2]
[331195936,1720129852727,-500.0,0.00014794,2]
[331195937,1720129852738,-500.0,0.00014794,2]
[331195938,1720129852748,-500.0,0.00014794,2]
[331195939,1720129852758,-500.0,0.00014794,2]
[331195940,1720129852766,-924.87,0.00014794,2]
[331195941,1720129852776,-500.0,0.00014794,2]
[331195942,1720129852785,-500.0,0.00014794,2]
[331195943,1720129852795,-500.0,0.00014794,2]
[331195944,1720129852803,-517.8,0.00014794,2]
[331195945,1720129852812,-500.0,0.00014794,2]
[331195946,1720129852821,-942.75,0.00014794,2]
[331195947,1720129852830,-500.0,0.00014794,2]
[331195948,1720129852841,-500.0,0.00014794,2]
[331195949,1720129852851,-610.77,0.00014794,2]
[331195950,1720129852861,-500.0,0.00014794,2]
[331195951,1720129852871,-4498.88,0.00014794,2]
[331195952,1720129852880,-500.0,0.00014794,2]
[331195953,1720129852890,-500.0,0.00014794,2]
[331195954,1720129852901,-500.0,0.00014794,2]
[331195955,1720129852910,-1213.98,0.00014794,2]
[331195956,1720129852921,-500.0,0.00014794,2]
[331195957,1720129852930,-500.0,0.00014794,2]
[331195958,1720129852940,-500.0,0.00014794,2]
[331195959,1720129852952,-500.0,0.00014794,2]
[331195960,1720129852963,-500.0,0.00014794,2]
[331195961,1720129852974,-500.0,0.00014794,2]
[331195962,1720129852984,-500.0,0.00014794,2]
[331195963,1720129852993,-500.0,0.00014794,2]
[331195964,1720129853003,-500.0,0.00014794,2]
[331195965,1720129853013,-500.0,0.00014794,2]
[331195966,1720129853022,-708.34,0.00014794,2]
[331195967,1720129853034,-1707.69,0.00014794,2]
[331195968,1720129853045,-398.8,0.00014794,2]
[331195969,1720129853054,-193.91698171,0.00014794,2]
[331195970,1720129853064,-514.34,0.00014794,2]
[331195971,1720129853074,-500.0,0.00014794,2]
[331195972,1720129853084,-684.74,0.00014794,2]
[331195973,1720129853093,-2120.1,0.00014794,2]
[331195974,1720129853102,-500.0,0.00014794,2]
[331195975,1720129853111,-500.0,0.00014794,2]
[331195976,1720129853120,-500.0,0.00014794,2]
[331195977,1720129853130,-1142.91,0.00014794,2]
[331195978,1720129853141,-500.0,0.00014794,2]
[331195979,1720129853151,-500.0,0.00014794,2]
[331195980,1720129853161,-637.35,0.00014794,2]
[331195981,1720129853170,-500.0,0.00014794,2]
[331195982,1720129853180,-496.0574163,0.00014794,2]
[331195983,1720129853430,-3.9425837,0.00014794,2]
[331195984,1720129853439,-500.0,0.00014794,2]
[331195985,1720129853449,-500.0,0.00014794,2]
[331195986,1720129853458,-500.0,0.00014794,2]
[331195987,1720129853468,-1014.8,0.00014794,2]
[331195988,1720129853478,-2031.52,0.00014794,2]
[331195989,1720129853488,-500.0,0.00014794,2]
[331195990,1720129853497,-500.0,0.00014794,2]
[331195991,1720129853508,-500.0,0.00014794,2]
[331195992,1720129853517,-500.0,0.00014794,2]
[331195993,1720129853526,-500.0,0.00014794,2]
[331195994,1720129853535,-500.0,0.00014794,2]
[331195995,1720129853544,-500.0,0.00014794,2]
[331195996,1720129853553,-3475.38,0.00014794,2]
[331195997,1720129853562,-500.0,0.00014794,2]
[331195998,1720129853571,-500.0,0.00014794,2]
[331195999,1720129853580,-500.0,0.00014794,2]
[331196000,1720129853589,-500.0,0.00014794,2]
[331196001,1720129853600,-500.0,0.00014794,2]
[331196002,1720129853609,-500.0,0.00014794,2]
[331196003,1720129853618,-500.0,0.00014794,2]
[331196004,1720129853629,-2783.7001809,0.00014794,2]
[331196005,1720129854160,-4780.79,0.00013972,2]
[331196006,1720129854170,-3049.1098191,0.00014794,2]
[331196007,1720129854179,-500.0,0.00014794,2]
[331196008,1720129854188,-500.0,0.00014794,2]
[331196009,1720129854199,-500.0,0.00014794,2]
[331196010,1720129854212,-12459.4,0.00014794,2]
[331196011,1720129854224,-500.0,0.00014794,2]
[331196012,1720129854234,-500.0,0.00014794,2]
[331196013,1720129854245,-500.0,0.00014794,2]
[331196014,1720129854254,-500.0,0.00014794,2]
[331196015,1720129854262,-500.0,0.00014794,2]
[331196016,1720129854271,-500.0,0.00014794,2]
[331196017,1720129854279,-500.0,0.00014794,2]
[331196018,1720129854290,-1789.57,0.00014794,2]
[331196019,1720129854299,-500.0,0.00014794,2]
[331196020,1720129854307,-500.0,0.00014794,2]
[331196021,1720129854315,-500.0,0.00014794,2]
[331196022,1720129854323,-500.0,0.00014794,2]
[331196023,1720129854331,-500.0,0.00014794,2]
[331196024,1720129854339,-500.0,0.00014794,2]
[331196025,1720129854348,-2939.9,0.00014794,2]
[331196026,1720129854356,-500.0,0.00014794,2]
[331196027,1720129854365,-500.0,0.00014794,2]
[331196028,1720129854373,-150.0,0.00014907,2]
[331196029,1720129854383,-6076.9012323,0.00014998,2]
[331196030,1720129854392,-1500.0,0.00014999,2]
[331196031,1720129854400,-2669.32,0.00014999,2]
[331196032,1720129854409,-948.84245203,0.00015,2]
[331196033,1720129854418,-1104.60661146,0.00015,2]
[331196034,1720129854427,-1285.31653565,0.00015,2]
[331196035,1720129854436,-395.39220748,0.00015,2]
[331196036,1720129854445,-7381.0,0.00015,2]
[331196037,1720129854454,-2669.32,0.00015067,2]
[331196038,1720129854463,-500.0,0.00015068,2]
[331196039,1720129854472,-500.0,0.00015068,2]
[331196040,1720129854481,-547.42907576,0.00015068,2]
[331196041,1720129854491,-500.0,0.00015068,2]
[331196042,1720129854500,-377.02724902,0.00015068,2]
[331196043,1720129854509,-508.3,0.00015068,2]
[331196044,1720129854519,-500.0,0.00015068,2]
[331196045,1720129854527,-212.97,0.00015068,2]
[331196046,1720129854536,-705.27,0.00015068,2]
[331196047,1720129854544,-500.0,0.00015068,2]
[331196048,1720129854552,-500.0,0.00015068,2]
[331196049,1720129854561,-500.0,0.00015068,2]
[331196050,1720129854569,-500.0,0.00015068,2]
[331196051,1720129854578,-500.0,0.00015068,2]
[331196052,1720129854590,-547.48,0.00015068,2]
[331196053,1720129854599,-524.67,0.00015068,2]
[331196054,1720129854608,-500.0,0.00015068,2]
[331196055,1720129854618,-661.15,0.00015068,2]
[331196056,1720129854628,-500.0,0.00015068,2]
[331196057,1720129854638,-600.67804405,0.00015068,2]
[331196058,1720129854648,-527.85,0.00015068,2]
[331196059,1720129854656,-500.0,0.00015068,2]
[331196060,1720129854666,-500.0,0.00015068,2]
[331196061,1720129854676,-500.0,0.00015068,2]
[331196062,1720129854685,-971.7,0.00015068,2]
[331196063,1720129854695,-500.0,0.00015068,2]
[331196064,1720129854704,-514.41,0.00015068,2]
[331196065,1720129854714,-6573.63,0.00015068,2]
[331196066,1720129854723,-500.0,0.00015068,2]
[331196067,1720129854733,-770.32,0.00015068,2]
[331196068,1720129854743,-3056.78,0.00015068,2]
[331196069,1720129854753,-596.61,0.00015068,2]
[331196070,1720129854762,-961.09,0.00015068,2]
[331196071,1720129854772,-500.0,0.00015068,2]
[331196072,1720129854781,-500.0,0.00015068,2]
[331196073,1720129854791,-555.25,0.00015068,2]
[331196074,1720129854800,-549.62,0.00015068,2]
[331196075,1720129854885,-500.0,0.00015068,2]
[331196076,1720129854896,-241.74,0.00015068,2]
[331196077,1720129854906,-501.06,0.00015068,2]
[331196078,1720129854916,-500.0,0.00015068,2]
[331196079,1720129854926,-500.0,0.00015068,2]
[331196080,1720129854936,-500.0,0.00015068,2]
[331196081,1720129854945,-500.0,0.00015068,2]
[331196082,1720129854954,-648.06908773,0.00015068,2]
[331196083,1720129854964,-278.17,0.00015068,2]
[331196084,1720129854973,-2088.51,0.00015068,2]
[331196085,1720129854982,-500.0,0.00015068,2]
[331196086,1720129854991,-596.6,0.00015068,2]
[331196087,1720129855000,-500.0,0.00015068,2]
[331196088,1720129855010,-500.0,0.00015068,2]
[331196089,1720129855019,-500.0,0.00015068,2]
[331196090,1720129855028,-500.0,0.00015068,2]
[331196091,1720129855037,-500.0,0.00015068,2]
[331196092,1720129855047,-501.09,0.00015068,2]
[331196093,1720129855056,-500.0,0.00015068,2]
[331196094,1720129855065,-274.55505447,0.00015068,2]
[331196095,1720129855074,-679.7,0.00015068,2]
[331196096,1720129855083,-600.23,0.00015068,2]
[331196097,1720129855092,-219.5487368,0.00015068,2]
[331196098,1720129855102,-500.0,0.00015068,2]
[331196099,1720129855111,-6708.03,0.00015068,2]
[331196100,1720129855121,-626.59,0.00015068,2]
[331196101,1720129855130,-297.5,0.00015068,2]
[331196102,1720129855140,-500.0,0.00015068,2]
[331196103,1720129855149,-171.92604304,0.00015068,2]
[331196104,1720129855159,-500.0,0.00015068,2]
[331196105,1720129855168,-500.0,0.00015068,2]
[331196106,1720129855177,-499.78,0.00015068,2]
[331196107,1720129855187,-500.0,0.00015068,2]
[331196108,1720129855200,-500.0,0.00015068,2]
[331196109,1720129855211,-924.87,0.00015068,2]
[331196110,1720129855220,-446.32,0.00015068,2]
[331196111,1720129855229,-500.0,0.00015068,2]
[331196112,1720129855239,-517.8,0.00015068,2]
[331196113,1720129855249,-500.0,0.00015068,2]
[331196114,1720129855259,-942.75,0.00015068,2]
[331196115,1720129855269,-500.0,0.00015068,2]
[331196116,1720129855280,-500.0,0.00015068,2]
[331196117,1720129855289,-610.77,0.00015068,2]
[331196118,1720129855299,-4498.88,0.00015068,2]
[331196119,1720129855308,-500.0,0.00015068,2]
[331196120,1720129855319,-500.0,0.00015068,2]
[331196121,1720129855328,-585.63,0.00015068,2]
[331196122,1720129855338,-1213.98,0.00015068,2]
[331196123,1720129855347,-636.35024536,0.00015068,2]
[331196124,1720129855356,-500.0,0.00015068,2]
[331196125,1720129855366,-588.18,0.00015068,2]
[331196126,1720129855377,-561.22,0.00015068,2]
[331196127,1720129855386,-500.0,0.00015068,2]
[331196128,1720129855396,-500.0,0.00015068,2]
[331196129,1720129855406,-500.0,0.00015068,2]
[331196130,1720129855415,-500.0,0.00015068,2]
[331196131,1720129855424,-461.2323934,0.00015068,2]
[331196132,1720129855436,-708.34,0.00015068,2]
[331196133,1720129855446,-1707.69,0.00015068,2]
[331196134,1720129855456,-500.0,0.00015068,2]
[331196135,1720129855466,-684.74,0.00015068,2]
[331196136,1720129855475,-2120.1,0.00015068,2]
[331196137,1720129855484,-500.0,0.00015068,2]
[331196138,1720129855494,-500.0,0.00015068,2]
[331196139,1720129855503,-500.0,0.00015068,2]
[331196140,1720129855513,-1142.91,0.00015068,2]
[331196141,1720129855523,-500.0,0.00015068,2]
[331196142,1720129855532,-500.0,0.00015068,2]
[331196143,1720129855542,-637.35,0.00015068,2]
[331196144,1720129855552,-500.0,0.00015068,2]
[331196145,1720129855561,-626.37,0.00015068,2]
[331196146,1720129855570,-500.0,0.00015068,2]
[331196147,1720129855579,-1014.8,0.00015068,2]
[331196148,1720129855588,-2031.52,0.00015068,2]
[331196149,1720129855598,-500.0,0.00015068,2]
[331196150,1720129855608,-500.0,0.00015068,2]
[331196151,1720129855617,-500.0,0.00015068,2]